Cogmind - Beta 13 @@@ ROGUE MODE // 2024.04.28 @ 13:25:35 Player: MiNathan Result: Core destroyed Performance ------------- Evolutions (0) 0 Regions Visited (1) 200 Robots Destroyed (16) 80 Value Destroyed (279) 279 Prototype IDs (0) 0 Alien Tech Used (0) 0 Bonus (0) 0 TOTAL SCORE: 559 Bonus ------- None Cogmind --------- Core Integrity 0/250 Matter 43/300 Energy 100/100 System Corruption 1% Temperature Cool (0) Movement Core (50) Location -10/Materials Parts ------- > --- POWER (1) -------- (None) > --- PROPULSION (2) --- (None) > --- UTILITY (2) ------ Signal Interpreter > --- WEAPON (2) ------- (None) > --- INVENTORY (5) ---- (None) Peak State ------------ > --- POWER ------------ Ion Engine > --- PROPULSION ------- Light Treads Light Treads > --- UTILITY ---------- Signal Interpreter > --- WEAPON ----------- Light Assault Rifle Grenade Launcher > --- INVENTORY -------- Small Laser [Rating: 6] Favorites ----------- Power Ion Engine Engine Ion Engine Propulsion Light Treads Treads Light Treads Utility Signal Interpreter Processor Signal Interpreter Weapon Grenade Launcher Energy Gun Small Laser Ballistic Gun Assault Rifle Launcher Grenade Launcher Build | -11 -10 ------- Run | Yrd Mat Slots Evolved . | . . Power . | . . Propulsion . | . . Utility . | . . Weapon . | . . Parts Attached 9 | 5 4 Power 1 | 1 . Engine 1 | 1 . Core . | . . Reactor . | . . Propulsion 2 | 2 . Treads 2 | 2 . Leg . | . . Wheel . | . . Hover . | . . Flight . | . . Utility 1 | . 1 Device . | . . Storage . | . . Processor 1 | . 1 Hackware . | . . Protection . | . . Artifact . | . . Weapon 5 | 2 3 Energy Gun 1 | 1 . Energy Cannon . | . . Ballistic Gun 2 | 1 1 Ballistic Cannon . | . . Launcher 2 | . 2 Special Weapon . | . . Impact Weapon . | . . Slashing Weapon . | . . Piercing Weapon . | . . Special Melee Weapon . | . . Unidentified Prototypes . | . . Parts Lost 4 | . 4 Power 1 | . 1 Propulsion 1 | . 1 Utility . | . . Weapon 2 | . 2 Highest Loss Streak 3 | . 3 To Critical Strikes . | . . Average Slot Usage (%) 77 | . 77 Engine 13 | . 13 Treads 23 | . 23 Processor 12 | . 12 Ballistic Gun 13 | . 13 Launcher 11 | . 11 Naked Turns . | . . Heaviest Build 10 | 7 10 Greatest Support 40 | 40 40 Greatest Overweight (x) 3 | . 3 Average Overweight (x) . | . . Largest Inventory Capacity 5 | 5 5 Average Capacity 5 | 5 5 Most Carried 4 | 4 2 Average Carried . | . . Final Capacity 5 | 5 5 Final Carried . | . . Class Distribution -------------------- 100% | Mutant Dominant Class ---------------- Mutant | -10/Materials Resources | -11 -10 ----------- Run | Yrd Mat Matter Collected 318 | 205 113 Remotely . | . . Salvage Created 221 | . 221 Parts 25 | . 25 Haulers Intercepted 1 | . 1 Recyclers Shooed . | . . Parts Field Recycled . | . . Retrieved Matter . | . . Parts Self-Destructed . | . . Prevented . | . . Kills | -11 -10 ------- Run | Yrd Mat Combat Hostiles Destroyed 8 | . 8 Guns 2 | . 2 AOE 6 | . 6 Classes Destroyed 7 | . 7 Worker 1 | . 1 Builder 3 | . 3 Hauler 1 | . 1 Operator 1 | . 1 Watcher 2 | . 2 Swarmer 3 | . 3 Grunt 5 | . 5 Best Kill Streak 5 | . 5 Combat Bots Only 3 | . 3 Max Kills in Single Turn 2 | . 2 Gunslinging . | . . Exploded 1 | . 1 Melee . | . . Uniques/NPCs Destroyed . | . . Combat | -11 -10 -------- Run | Yrd Mat Hostile Shots Fired 44 | . 44 Missed 12 | . 12 Damage Taken 722 | . 722 Core 250 | . 250 Absorbed by Shields . | . . Regen/Repaired (Parts) 76 | . 76 Core Remaining (%) 100 | 100 . Volleys Fired 43 | . 43 Largest 2 | . 2 Hottest 60 | . 60 Shots Fired 67 | . 67 Gun 44 | . 44 Cannon . | . . Launcher 23 | . 23 Special . | . . Kinetic 43 | . 43 Thermal 1 | . 1 Explosive 23 | . 23 Electromagnetic . | . . Robot Hit Streak 6 | . 6 Robot Miss Streak 4 | . 4 Penetration Max . | . . Secondary Targets . | . . Shots Hit Robots 27 | . 27 Core Hits 29 | . 29 Critical Kills . | . . Critical Parts Destroyed 1 | . 1 Critical Strikes 1 | . 1 Destroy 1 | . 1 Melee Attacks . | . . Impact . | . . Slashing . | . . Piercing . | . . Sneak Attacks . | . . Combat Hostiles . | . . Follow-up Attacks . | . . Damage Inflicted 1261 | . 1261 Guns 236 | . 236 Cannons . | . . Explosions 972 | . 972 Melee . | . . Ramming 53 | . 53 Kinetic 236 | . 236 Thermal . | . . Explosive 972 | . 972 Electromagnetic . | . . Impact . | . . Slashing . | . . Piercing . | . . Highest Corruption 1 | . 1 Average Corruption 1 | . 1 Corruption Purged . | . . Corruption Blocked . | . . Overload Shots . | . . Overflow Damage 2 | . 2 Projectiles . | . . Explosions 2 | . 2 Melee . | . . Knockbacks . | . . Impact . | . . Kinetic . | . . Secondary . | . . Self-Inflicted Damage 89 | . 89 Shots 4 | . 4 Rammed 17 | . 17 Targets Rammed 18 | . 18 Kicked . | . . Crushed 1 | . 1 Highest Temperature 20 | . 20 Average Temperature 6 | . 6 Received Heat Transfer 225 | . 225 Siege Activations . | . . Robots Corrupted . | . . Combat Hostiles . | . . Parts Fried . | . . Impact Corruptions . | . . Robots Melted . | . . Combat Hostiles . | . . Parts Melted . | . . Heat Transferred . | . . Parts Sabotaged . | . . Parts Stolen . | . . Parts Stripped . | . . Power Chain Reactions . | . . Alert | -11 -10 ------- Run | Yrd Mat Peak Influence 267 | . 267 Initial . | . . Average 90 | . 99 Maximum Alert Level 1 | . 1 Low Security (%) 91 | 100 90 Level 1 8 | . 9 Level 2 . | . . Level 3 . | . . Level 4 . | . . Level 5 . | . . High Security . | . . Max Security . | . . Squads Dispatched . | . . Investigation . | . . Extermination . | . . Reinforcement . | . . Assault . | . . Garrison . | . . Intercept . | . . Searches Triggered . | . . Construction Impeded . | . . Haulers Reinforced . | . . Active Scanning Responses . | . . Cargo Convoy Interrupts . | . . Stealth | -11 -10 --------- Run | Yrd Mat Distress Signals 1 | . 1 Communications Jammed . | . . Distress Signals . | . . Times Spotted 14 | . 14 Peak Tracking Total 4 | . 4 Tactical Retreats . | . . Traps | -11 -10 ------- Run | Yrd Mat Traps Triggered 1 | . 1 Indirectly . | . . Trap Hack Attempts . | . . Triggered . | . . Disarmed . | . . Reprogrammed . | . . Reused . | . . Traps Extracted . | . . Installed . | . . Triggered . | . . Machines | -11 -10 ---------- Run | Yrd Mat Machines Disabled . | . . Max in Single Turn . | . . Machines Repaired . | . . Machines Dismantled . | . . Machines Sabotaged . | . . Overloaded Fab Kills . | . . Hacking | -11 -10 --------- Run | Yrd Mat Machines Accessed 3 | . 3 Terminals 2 | . 2 Fabricators . | . . Repair Stations 1 | . 1 Recycling Units . | . . Scanalyzers . | . . Garrison Access . | . . Total Hacks 10 | . 10 Successful 8 | . 8 Failed 2 | . 2 Catastrophic . | . . Database Lockouts . | . . Manual . | . . Terminals 5 | . 5 Fabricators . | . . Repair Stations 5 | . 5 Recycling Units . | . . Scanalyzers . | . . Garrison Access . | . . Terminal Hacks 4 | . 4 Alert Level 1 | . 1 Dispatch Records 1 | . 1 Zone Layout 2 | . 2 Fabricator Hacks . | . . Repair Station Hacks 4 | . 4 Scan Component 2 | . 2 Repair 2 | . 2 Recycling Unit Hacks . | . . Scanalyzer . | . . Garrison Access Hacks . | . . Unauthorized Hacks . | . . Terminals . | . . Fabricators . | . . Repair Stations . | . . Recycling Units . | . . Scanalyzers . | . . Garrison Access . | . . Data Cores Recovered 1 | . 1 Used . | . . Hacking Detections . | . . Full Trace Events . | . . Feedback Events . | . . Feedback Blocked . | . . Robot Schematics Acquired . | . . Robots Built . | . . Authchips . | . . Time . | . . Total Robot Build Rating . | . . Part Schematics Acquired . | . . Parts Built . | . . Authchips . | . . Time . | . . Total Part Build Rating . | . . Parts Repaired 2 | . 2 Time 52 | . 52 Parts Recycled . | . . Recycled Matter . | . . Retrieved Matter . | . . Retrieved Components . | . . Parts Scanalyzed . | . . Part Schematics Acquired . | . . Parts Damaged . | . . Bothacking | -11 -10 ------------ Run | Yrd Mat Used RIF Installer . | . . Robots Hacked . | . . Non-combat . | . . Combat . | . . Robot Hacks Applied . | . . Relay Couplers Released . | . . Fabnet Peak Effective % . | . . Robots Rewired . | . . Allies Hacked . | . . Hacks Repelled . | . . Allies | -11 -10 -------- Run | Yrd Mat Total Allies . | . . Largest Group . | . . Highest-Rated Group . | . . Highest-Rated Ally . | . . Total Orders . | . . Ally Attacks . | . . Total Damage . | . . Kills . | . . Allies Corrupted . | . . Allies Melted . | . . Intel | -11 -10 ------- Run | Yrd Mat Robot Analysis Total . | . . Derelict Logs Recovered . | . . Drone Launches . | . . Drone Recoveries . | . . Exploration | -11 -10 ------------- Run | Yrd Mat Turns Passed 716 | 64 652 Spaces Moved 302 | 41 261 Core 30 | 11 19 Treads 272 | 30 242 Legs . | . . Wheels . | . . Hover . | . . Flight . | . . Fastest Speed 50 | 50 50 Average Speed 154 | 130 158 Slowest Speed 200 | 160 200 Overloaded Moves . | . . Propulsion Burnouts . | . . Robots Hopped . | . . Cave-ins Triggered . | . . Exploration Rate (%) 30 | 5 55 Regions Visited 1 Branch Regions . Pre-discovered Areas . | . . Known Exits Taken . | . . Unknown Exits Taken 1 | 1 . Scrap Searched . | . . Spaces Dug 16 | . 16 Terrain Destroyed 117 | . 117 Melee . | . . Projectile . | . . AOE 117 | . 117 Terrain Rammed . | . . Walls Destroyed . | . . Machines Disabled . | . . Actions | -11 -10 --------- Run | Yrd Mat Total 480 | 52 428 Wait 97 | . 97 Move 301 | 40 261 Hop . | . . Pick Up 10 | 6 4 Fast Attach . | . . Attach 7 | 5 2 Detach . | . . Swap 2 | . 2 Drop 3 | 1 2 Fire 43 | . 43 Melee . | . . Ram 9 | . 9 Kick . | . . Crush 8 | . 8 Escape Stasis . | . . Rewire . | . . Trap . | . . Miscellaneous . | . . Route ------- -11/Scrapyard -10/Materials (discovered 1 exit: *Mat) History --------- Turn | Location | Event 4 | -11/Scrapyard | Discovered new exit (range 16) 65 | -11/Scrapyard | Entered Materials 314 | -10/Materials | Build established: Mutant 431 | -10/Materials | Discovered new exit (range 16) 466 | -10/Materials | Identified exit to Materials 564 | -10/Materials | Repaired Grenade Launcher 591 | -10/Materials | Repaired Lgt. Treads 684 | -10/Materials | Core integrity fell below 50% 713 | -10/Materials | Core integrity fell below 20% 717 | -10/Materials | Core destroyed Last Messages --------------- K-01 Serf collects debris. R-06 Scavenger collects Wheel. K-01 Serf collects debris. The unstable cave ceiling collapses. K-01 Serf collects debris. Acquired 2 matter. K-01 Serf collects debris. R-06 Scavenger collects Ion Engine. K-01 Serf collects debris. Assault Rifle destroyed. K-01 Serf collects debris. The unstable cave ceiling collapses. Ion Engine destroyed. Slammed into G-47 Trooper. Destabilizing: System interference. Signal Interpreter temporarily disabled. Slammed into G-47 Trooper. Destabilizing: System corrupted (+1). Grenade Launcher destroyed. Slammed into G-47 Trooper. Map ----- +----------------------------------------------------+ | ???????????????????????????????? # < # # | | ???????????????????????????????? # # "=" # | | ?????????????????????????????####+### + "R" # | | ?????????????????????????????# # """ # | | ?????????????????????##??????# ######## | | ????????????????????# ??????# # T | | ????????????????????# ??#####+##### # | | ????????????????????## ##?# # # | | ????????????????##### ### # | | ????????????????+ | | ??????????? ??# ## """" | | ??????????# ### ^ "" = """" | | ??????????# Y" """" | | ??????????? "" # | | ??????????? """ ;; ####### | | ?????????? """ ;; "" #?????? | | ???????????????# ^ "" ; " ######? | | ???????????????# """ ; " #? | | ???????????????+ ; " # #? | | ???????????????# ; " ## | | ???????????????# ; " # # | | ???????????????###### ; " # !! #" | | ????????????????????# ; " ! #" | | ??????????########??# # # ! ! #" | | ??????????# | ?# ############# # # | | ??????????# # @ ########???# # | | ??????????# ag r # # | | ??????????# ############# # # | | ??????????# #???????????# # ## | | ??????????# #???????????# ####+### | | ??????????# # #???????????# #??# ## | | ??????????# [ # #???????????# ???# | | ??????????# ## ###???????????# ???# ### | | ??????????######+##?# #?????????????? ???# #?# | | ????????????????????# #?????????????? ???#+#?# | | ????????????????????# #?????????????? ??????? | | ????????????????????# #?????????????? ??????? | | ????????????????????# #?????????????? ??????? | | ????????????????????# ??????????????????????? | | ???????????????????? ??????????????????????? | | ????????????????????####??????????????????????? | | ??????????????????????????????????????????????? | | ??????????????????????????????????????????????? | | ??????????????????????????????????????????????? | | ??????????????????????????????????????????????? | | ??????????????????????????????????????????????? | | ???????????????????????????????????????????????# | | ???????????????????????????????????????????????? | | ???????????????????????????????????????????????? | | ???????????????????????????????????????????????? | +----------------------------------------------------+ Best States ------------- Heat Dissipation 25 Energy Generation 10 Energy Capacity 250 Matter Stores 255 Matter Capacity 300 Sight Range 16 Terrain Scan Density 10 Evasion (%) 50 Recoil Reduction 2 Item Schematics ----------------- None Robot Schematics ------------------ None Fabricated ------------ Nothing Alien Tech Used ----------------- None Achievements -------------- None Challenges ------------ None Game ------ Seed SensorBackupDissipator Manual? 0 Play Time 00:07:47 Cumulative 4.4 hours Start 2024.04.28 @ 13:19:36 End 2024.04.28 @ 13:25:35 Sessions 1 Manual Loads 0 Difficulty Rogue Special Mode None Game No. 20 Rogue 6 Adventurer 14 Explorer 0 Win Type - Total 0 Types 0/0/0/0/0/0/0/0/0 Lore% 13 Gallery% 13 Achievement% 13 Wizard Run 0 Options --------- Layout 1 ASCII 0 Keyboard 0 Movement Mouse Keybinds 0 Fullscreen 2 Font 24/Proggy Map View 50x35 Zoom Use 1% Tactical HUD 0 Map Filters NONE Filters NONE Steam 1 RUN: b36c0707-be08-4a69-a281-66d163fe85db